bitfinex-derivatives/quotes_ETHF0:USTF0_20240927
["timestamp","ask_amount","ask_price","bid_price","bid_amount"]
[1727479803559,0.37035,2699.5,2699.2,1.74456758]
[1727479803759,4.65468552,2699.6,2699.2,1.74461781]
[1727479803760,1.33,2699.3,2699.2,1.74461781]
[1727479803961,1.33,2699.3,2699.2,2.37910921]
[1727479804158,1.33,2699.3,2699.2,2.97917056]
[1727479804349,1.33,2699.3,2699.2,3.34953078]
[1727479804554,1.33,2699.3,2699.2,2.37893499]
[1727479804759,1.33,2699.3,2699.2,2.00855499]
[1727479805162,1.33,2699.3,2699.2,2.97908528]
[1727479807266,1.33,2699.3,2699.2,3.34946528]
[1727479807559,1.33,2699.3,2699.2,2.97908528]
[1727479808154,1.33,2699.3,2699.2,1.74443029]
[1727479809569,1.33,2699.3,2699.2,2.11481029]
[1727479809763,1.33,2699.3,2699.2,2.97875658]
[1727479811068,1.33,2699.3,2699.2,7.05393658]
[1727479811255,1.33,2699.3,2699.2,6.08340629]
[1727479811462,1.33,2699.3,2699.2,7.17049955]
[1727479811672,1.33,2699.3,2699.2,5.71302629]
[1727479811887,3.5816,2699.7,2699.2,5.71302629]
[1727479812164,1.33,2699.6,2699.5,1.45747326]
[1727479812365,0.37031,2699.7,2699.6,0.8047]
[1727479812555,0.37031,2699.7,2699.6,1.77493599]
[1727479812874,0.37031,2699.7,2699.6,0.8047]
[1727479813164,1.33,2699.7,2699.6,5.47893599]
[1727479813365,1.33,2699.7,2699.6,6.71316429]
[1727479813567,1.33,2699.7,2699.6,5.7429498]
[1727479814069,1.33,2699.7,2699.6,2.0389498]
[1727479814568,1.33,2699.7,2699.6,3.00920867]
[1727479815473,1.33,2699.7,2699.6,7.57075306]
[1727479816067,1.33,2699.7,2699.6,7.20042306]
[1727479818771,1.33,2699.7,2699.6,7.57075306]
[1727479818973,1.33,2699.7,2699.6,3.49664587]
[1727479819173,1.33,2699.7,2699.6,3.86697587]
[1727479820071,1.33,2699.7,2699.6,3.49664587]
[1727479822179,1.33,2699.7,2699.6,3.86697587]
[1727479822377,1.33,2699.7,2699.6,3.49664587]
[1727479823783,1.33,2699.7,2699.6,3.49668612]
[1727479826475,1.33,2699.7,2699.6,3.86701612]
[1727479829096,1.70031,2699.7,2699.6,3.49668612]
[1727479829283,1.33,2699.7,2699.6,3.49668612]
[1727479829981,1.70031,2699.7,2699.6,3.49668612]
[1727479830292,1.33,2699.7,2699.6,3.49668612]
[1727479830590,1.33,2699.7,2699.6,7.57101612]
[1727479831294,1.33,2699.7,2699.6,6.11354286]
[1727479831295,0.77417145,2699.7,2699.6,6.11354286]
[1727479831480,0.77417145,2699.7,2699.6,5.74321286]
[1727479831994,0.77417145,2699.7,2699.6,7.19883317]
[1727479832496,0.77417145,2699.7,2699.6,7.56916317]
[1727479832685,0.77417145,2699.7,2699.6,7.19883317]
[1727479833190,0.77417145,2699.7,2699.6,6.11354286]
[1727479833389,1.33,2699.8,2699.7,0.37031]
[1727479833591,1.33,2699.8,2699.7,3.0603114]
[1727479836091,1.33,2699.8,2699.7,6.7643114]
[1727479836795,0.344,2700.4,2699.7,17.15853622]
[1727479836995,0.37025,2700.2,2700.1,0.97013301]
[1727479837301,0.37025,2700.2,2700.0,1.74049263]
[1727479837302,0.37026,2700.1,2700.0,1.74049263]
[1727479837594,0.37026,2700.1,2700.0,2.0021635]
[1727479838190,0.37026,2700.1,2700.0,1.74037646]
[1727479839195,1.70025,2700.2,2700.0,1.74037646]
[1727479839392,1.33,2700.2,2700.0,1.74037646]
[1727479839593,0.37026,2700.1,2700.0,1.74037646]
[1727479841391,0.37026,2700.1,2700.0,0.7704]
[1727479841589,0.37026,2700.1,2700.0,1.74037646]
[1727479842605,1.70025,2700.2,2700.0,1.74037646]
[1727479843097,0.37026,2700.1,2700.0,1.74037646]
[1727479843496,1.33,2700.2,2700.0,1.74037646]
[1727479843898,1.70025,2700.2,2700.0,1.14067]
[1727479844095,1.33,2700.2,2700.0,2.11064646]
[1727479844295,0.3912,2700.3,2700.0,1.74037646]
[1727479844498,1.7212,2700.3,2700.0,1.74037646]
[1727479844698,1.7212,2700.3,2700.1,0.37026]
[1727479844998,1.7212,2700.3,2700.2,0.37025]
[1727479845701,1.7212,2700.3,2700.1,1.34022646]
[1727479847300,0.3912,2700.3,2700.1,0.96997646]
[1727479847600,1.674,2700.7,2700.5,0.3702]
[1727479847798,1.33,2700.7,2700.6,0.7533]
[1727479848204,1.33,2700.7,2700.6,1.1254]
[1727479849398,1.33,2700.7,2700.6,1.49559]
[1727479849598,3.2078,2700.8,2700.6,1.49559]
[1727479849797,1.33,2701.0,2700.7,4.07258]
[1727479850000,1.33,2701.0,2700.7,0.37018]
[1727479850995,1.33,2700.8,2700.6,5.67243821]
[1727479851199,1.33,2700.8,2700.7,0.37018]
[1727479851406,1.33,2700.8,2700.7,4.07258]
[1727479851806,1.33,2700.8,2700.7,3.7024]
[1727479855107,1.33,2700.8,2700.7,4.07258]
[1727479857005,1.33,2701.0,2700.9,0.37015]
[1727479857315,1.33,2701.0,2700.8,0.37016]
[1727479857812,1.33,2701.0,2700.9,0.3748]
[1727479864815,1.33,2701.0,2700.7,0.37016]
[1727479864816,0.37013,2701.1,2700.7,0.75498]
[1727479865008,1.33,2700.9,2700.7,0.75498]
[1727479865614,1.33,2700.9,2700.7,4.45738]
[1727479866010,1.33,2700.9,2700.8,0.37016]
[1727479866208,1.33,2700.9,2700.8,3.7024]
[1727479868005,1.33,2700.9,2700.7,3.96277]
[1727479868816,1.33,2700.9,2700.7,3.5926]
[1727479869017,1.33,2700.9,2700.7,3.96277]
[1727479869407,1.33,2700.9,2700.7,3.5926]
[1727479870518,1.33,2700.9,2700.7,3.96277]
[1727479870912,1.33,2700.9,2700.7,3.5926]
[1727479872922,1.33,2700.9,2700.7,0.3848]
[1727479873719,1.33,2700.9,2700.7,0.75498]
[1727479873919,1.33,2700.9,2700.7,0.75497]
[1727479874114,1.33,2700.9,2700.7,0.3848]
[1727479874615,1.70015,2700.9,2700.7,0.3848]
[1727479874810,1.33,2700.9,2700.7,0.3848]
[1727479875011,0.392,2701.2,2700.7,0.75497]
[1727479875012,1.70014,2701.0,2700.7,0.75497]
[1727479876521,0.76211,2701.2,2700.9,3.2078]
[1727479876723,0.76211,2701.2,2701.0,0.7437]
[1727479877019,1.70013,2701.1,2700.9,3.2078]
[1727479877819,1.33,2701.1,2700.8,1.1319]
[1727479878124,1.70013,2701.1,2700.8,4.3397]
[1727479878724,1.70013,2701.1,2700.9,0.37015]
[1727479878725,1.33,2701.1,2700.9,0.37015]
[1727479878921,1.70012,2701.1,2700.8,4.70986]
[1727479879123,1.33,2701.1,2700.9,0.37015]
[1727479879318,1.70013,2701.1,2700.8,4.70986]
[1727479880514,1.70013,2701.1,2700.8,1.50206]
[1727479880720,1.70013,2701.1,2700.8,4.70986]
[1727479882323,1.70013,2701.1,2700.8,5.67891821]
[1727479885119,1.70013,2701.1,2700.9,0.96905821]
[1727479886930,1.70013,2701.1,2700.9,1.33920821]
[1727479888935,1.70013,2701.1,2701.0,0.96905821]
[1727479889620,1.33,2701.1,2701.0,0.96905821]
[1727479890528,1.33,2701.1,2701.0,2.20120678]
[1727479891119,0.392,2701.2,2701.0,3.05622038]
[1727479891319,0.392,2701.2,2701.1,0.97056727]
[1727479891520,0.392,2701.2,2701.1,1.34666727]
[1727479891917,1.7001,2701.3,2701.1,1.34666727]
[1727479891918,0.7633,2701.5,2701.1,8.61117426]
[1727479892124,1.13337,2701.5,2701.4,0.97044218]
[1727479892325,1.13337,2701.5,2701.4,2.20318414]
[1727479892326,2.46337,2701.5,2701.4,2.20318414]
[1727479893130,3.91025552,2701.5,2701.4,2.68840524]
[1727479893324,2.83527,2701.5,2701.4,1.23274196]
[1727479894335,2.83527,2701.5,2701.4,2.20358797]
[1727479895325,2.83527,2701.5,2701.4,2.20380206]
[1727479896234,2.83527,2701.5,2701.4,0.97084601]
[1727479898036,2.4652,2701.5,2701.4,0.97084601]
[1727479898336,2.83527,2701.5,2701.4,0.97084601]
[1727479898640,2.4652,2701.5,2701.4,0.97084601]
[1727479899039,2.83527,2701.5,2701.4,0.97084601]
[1727479899342,2.83527,2701.5,2701.3,0.97084601]
[1727479901031,2.4652,2701.5,2701.3,0.97084601]
[1727479901231,2.0819,2701.5,2701.3,0.97084601]
[1727479901432,1.7019,2701.5,2701.3,0.97084601]
[1727479902140,2.07197,2701.5,2701.3,0.97084601]
[1727479902640,1.7019,2701.5,2701.3,0.97084601]
[1727479903042,2.07197,2701.5,2701.3,0.97084601]
[1727479905835,6.35658552,2701.5,2701.2,2.10944601]
[1727479906040,6.35658552,2701.5,2701.2,1.73934601]
[1727479906041,6.72665552,2701.5,2701.2,1.73934601]
[1727479910337,6.35658552,2701.5,2701.2,2.10944601]
[1727479910633,6.72665552,2701.5,2701.2,2.10944601]
[1727479910847,6.72665552,2701.5,2701.2,1.73934601]
[1727479911143,6.35658552,2701.5,2701.2,2.10945601]
[1727479911338,6.35658552,2701.5,2701.2,1.73934601]
[1727479911538,6.72665552,2701.5,2701.2,1.73934601]
[1727479913436,6.35658552,2701.5,2701.2,2.10945601]
[1727479913643,6.35658552,2701.5,2701.2,1.73934601]
[1727479913938,6.72665552,2701.5,2701.2,1.73934601]
[1727479914537,1.70009,2701.3,2701.1,0.97084601]
[1727479914743,2.77688552,2701.4,2701.1,0.97084601]
[1727479914943,1.81878552,2701.5,2701.3,0.37009]
[1727479915245,1.81878552,2701.5,2701.4,0.3944]
[1727479915446,0.3719,2701.5,2701.4,0.3944]
[1727479918748,2.18885552,2701.5,2701.4,0.3944]
[1727479919047,0.74197,2701.5,2701.4,0.3944]
[1727479921044,0.3719,2701.5,2701.4,0.3944]
[1727479921254,2.77688552,2701.6,2701.4,1.36524601]
[1727479921548,1.33,2701.6,2701.5,0.97084601]
[1727479921749,1.70005,2701.6,2701.5,1.35424601]
[1727479924345,1.33,2701.6,2701.5,1.35424601]
[1727479925251,1.70005,2701.6,2701.5,1.35424601]
[1727479927548,0.37007,2701.5,2701.4,0.97084601]
[1727479927844,1.33,2701.5,2701.4,0.97084601]
[1727479928050,3.14693552,2701.7,2701.4,2.20342345]
[1727479928238,3.14693552,2701.7,2701.5,1.36063393]
[1727479928645,1.81693552,2701.6,2701.5,0.39]
[1727479930954,1.44688552,2701.6,2701.5,0.39]
[1727479931148,1.81693552,2701.6,2701.5,1.36063393]
[1727479931357,1.81693552,2701.6,2701.5,0.39]
[1727479932554,1.81693552,2701.6,2701.5,1.36063393]
[1727479933659,1.81693552,2701.6,2701.5,0.39]
[1727479934247,1.81693552,2701.6,2701.5,1.36063393]
[1727479934747,2.74207552,2701.6,2701.5,0.97063393]
[1727479934952,6.8283202,2701.6,2701.3,0.97063393]
[1727479935147,1.81832641,2701.4,2701.3,0.97063393]
[1727479935856,1.81849581,2701.4,2701.3,0.97063393]
[1727479936156,1.81849581,2701.4,2701.3,1.23324193]
[1727479936459,1.81849581,2701.4,2701.3,2.68890521]
[1727479936963,1.81849581,2701.4,2701.3,2.2045089]
[1727479937265,1.81849581,2701.4,2701.3,1.23324193]
[1727479937464,2.74370581,2701.4,2701.3,1.23324193]
[1727479937657,6.5583902,2701.4,2701.2,0.97135501]
[1727479937957,4.90789,2701.3,2701.2,0.97135501]
[1727479938153,0.37011,2701.2,2701.1,0.97135501]
[1727479938354,2.21086795,2701.2,2701.1,1.23358719]
[1727479938561,2.21086795,2701.2,2701.1,2.20488935]
[1727479938956,2.21086795,2701.2,2701.1,1.2334193]
[1727479939150,2.21086795,2701.2,2701.1,2.2047083]
[1727479939959,2.21086795,2701.2,2701.0,1.45566328]
[1727479939960,0.37012,2701.1,2701.0,0.971289]
[1727479940164,1.81828322,2701.1,2701.0,2.20450672]
[1727479940363,0.37012,2701.1,2701.0,0.97121521]
[1727479941265,0.37012,2701.1,2701.0,2.20429321]
[1727479942062,0.37012,2701.1,2701.0,0.97121521]
[1727479943763,1.84036322,2701.2,2701.0,0.97121521]
[1727479943764,2.21047322,2701.2,2701.0,0.97121521]
[1727479944271,1.84036322,2701.2,2701.0,0.97121521]
[1727479944675,0.3922,2701.2,2701.0,0.97121521]
[1727479944972,0.76231,2701.2,2701.0,0.97121521]
[1727479948886,0.3922,2701.2,2701.1,0.97121521]
[1727479949174,0.76231,2701.2,2701.1,0.97121521]
[1727479949567,0.76231,2701.2,2701.0,0.97121521]
[1727479949763,2.77816322,2701.4,2701.1,0.97121521]
[1727479949960,1.81826322,2701.3,2701.1,0.97121521]
[1727479950173,0.3701,2701.3,2701.2,0.4034]
[1727479950370,3.52075322,2701.4,2701.2,0.4034]
[1727479952374,0.37009,2701.3,2701.2,0.4034]
[1727479952577,0.37011,2701.2,2701.1,0.97121521]
[1727479952777,0.37011,2701.2,2701.0,0.97121521]
[1727479953560,2.77816322,2701.3,2701.0,0.97121521]
[1727479953561,0.37012,2701.1,2701.0,0.97121521]
[1727479953762,0.37012,2701.1,2701.0,2.20348735]
[1727479953968,0.37012,2701.2,2701.0,2.20348735]
[1727479954171,3.14826322,2701.3,2701.0,0.97121521]
[1727479954374,0.3701,2701.3,2701.0,1.34134521]
[1727479954569,0.3701,2701.3,2701.1,0.97121521]
[1727479954971,0.3701,2701.3,2701.2,0.4028]
[1727479957572,0.37012,2701.1,2701.0,0.97121521]
[1727479966388,0.37012,2701.1,2700.9,1.36751521]
[1727479967384,0.37012,2701.1,2701.0,0.3967]
[1727479967778,0.37012,2701.2,2701.0,0.3967]
[1727479967983,1.44816322,2701.3,2701.0,1.36791521]
[1727479968178,2.19075322,2701.4,2701.1,0.97121521]
[1727479968394,0.3701,2701.3,2701.1,0.97121521]
[1727479968584,2.19075322,2701.4,2701.2,0.3988]
[1727479969285,2.19075322,2701.4,2701.3,0.3752]
[1727479971391,1.81825322,2701.4,2701.3,0.3752]
[1727479973886,0.37009,2701.4,2701.3,0.3752]
[1727479974784,1.81825322,2701.4,2701.3,0.3752]
[1727479976090,1.81825322,2701.4,2701.3,1.34641521]
[1727479976398,1.81825322,2701.4,2701.3,0.3752]
[1727479977086,1.44816322,2701.4,2701.3,0.3752]
[1727479977396,0.37008,2701.4,2701.3,2.57901203]
[1727479977698,0.37008,2701.4,2701.3,1.60814001]
[1727479977988,0.37008,2701.4,2701.3,1.34606464]
[1727479978382,1.81824322,2701.4,2701.3,1.34606464]
[1727479978894,1.81824322,2701.4,2701.3,2.57911192]
[1727479980295,1.81824322,2701.4,2701.3,1.60824728]
[1727479980991,1.81824322,2701.4,2701.3,1.34644428]
[1727479980992,0.37008,2701.4,2701.3,1.34644428]
[1727479984196,1.81892645,2701.4,2701.3,1.34644428]
[1727479984691,2.74413645,2701.4,2701.3,1.34644428]
[1727479984897,0.37009,2701.3,2701.2,0.97124428]
[1727479985094,0.37009,2701.3,2701.2,2.20464039]
[1727479985095,2.20473228,2701.3,2701.2,2.20464039]
[1727479985395,2.20473228,2701.3,2701.2,0.97124428]
[1727479985990,2.20473228,2701.3,2701.2,2.20463056]
[1727479987290,1.44874228,2701.3,2701.2,2.20463056]
[1727479987490,1.44874228,2701.3,2701.2,2.68904956]
[1727479987697,1.44874228,2701.4,2701.2,6.63508628]
[1727479987993,1.44874228,2701.4,2701.3,3.05994642]
[1727479989193,1.81881228,2701.5,2701.3,3.05994642]
[1727479989398,1.81881228,2701.5,2701.4,1.71867802]
[1727479989597,1.44874228,2701.5,2701.4,1.71867802]
[1727479989899,1.44874228,2701.6,2701.4,7.50935941]
[1727479990194,1.44874228,2701.6,2701.5,2.20445837]
[1727479990389,1.44874228,2701.6,2701.5,2.20427521]
[1727479991296,1.44874228,2701.6,2701.5,0.9711391]
[1727479991701,1.44874228,2701.6,2701.5,2.20413854]
[1727479991887,1.44874228,2701.6,2701.5,2.57420854]
[1727479992087,1.44874228,2701.6,2701.5,3.53413854]
[1727479992399,1.44874228,2701.7,2701.5,3.9040641]
[1727479992591,1.44874228,2701.8,2701.6,4.12804924]
[1727479992902,1.44874228,2701.8,2701.7,1.33636418]
[1727479993095,1.81875228,2701.9,2701.7,2.56920226]
[1727479993396,1.81875228,2701.9,2701.8,0.7627]
[1727479994402,0.37001,2701.9,2701.8,0.7627]
[1727479994790,1.81875228,2701.9,2701.8,0.7627]
[1727479995895,0.37001,2701.9,2701.8,0.7627]
[1727479996094,1.44874228,2701.9,2701.8,0.7627]
[1727479996295,1.81874228,2702.0,2701.8,0.7627]
[1727479996903,1.44874228,2701.9,2701.8,0.7627]
[1727479998107,1.81874228,2702.0,2701.8,0.7627]
[1727479999002,0.37001,2701.9,2701.8,0.7627]
[1727480000395,1.81875228,2702.0,2701.8,0.7627]
[1727480002210,0.37001,2702.0,2701.8,0.7627]
[1727480003203,1.81875228,2702.0,2701.8,0.7627]
[1727480003407,0.37001,2702.0,2701.8,0.7627]
[1727480003604,3.14873228,2702.1,2701.8,0.7627]
[1727480005508,0.37,2702.0,2701.8,0.7627]
[1727480006312,0.736,2702.0,2701.8,0.7627]
[1727480007207,0.366,2702.0,2701.8,0.7627]
[1727480007714,0.36999,2702.1,2701.8,0.7627]
[1727480008406,1.81873228,2702.1,2701.8,0.7627]
[1727480009003,1.33,2702.2,2701.8,2.0927]
[1727480009004,1.81872228,2702.2,2701.8,2.0927]
[1727480009409,1.81871228,2702.3,2701.8,2.0927]
[1727480009612,1.81871228,2702.3,2701.8,2.46272]
[1727480010407,1.81871228,2702.3,2701.8,2.46273]
[1727480011207,1.81871228,2702.3,2702.0,1.33]
[1727480011615,0.36997,2702.2,2702.1,0.3985]
[1727480012107,1.81871228,2702.3,2702.1,0.3985]
[1727480012908,1.81871228,2702.3,2702.2,1.33]
[1727480012909,1.44874228,2702.3,2702.2,1.33]
[1727480013220,1.79274228,2702.7,2702.2,2.1187]
[1727480013408,0.4015,2702.8,2702.6,1.33]
[1727480013719,0.4015,2702.8,2702.7,1.1872]
[1727480014529,3.2078,2702.9,2702.7,1.1872]
[1727480014711,3.2078,2702.9,2702.8,1.33]
[1727480018127,0.36986,2703.0,2702.8,1.33]
[1727480018128,3.5518,2703.3,2702.8,5.03]
[1727480018430,3.5518,2703.3,2703.2,1.33]
[1727480018431,0.36982,2703.3,2703.2,1.33]
[1727480018720,0.76322,2703.4,2703.1,1.33]
[1727480018925,0.3934,2703.4,2703.2,0.3661]
[1727480019121,0.3934,2703.4,2703.2,0.7432]
[1727480019419,0.3934,2703.4,2703.3,1.33]
[1727480020217,0.36981,2703.4,2703.2,1.1462]
[1727480020408,0.3824,2703.3,2703.2,1.1462]
[1727480023320,0.3824,2703.3,2703.2,2.4762]
[1727480033837,0.75222,2703.3,2703.2,0.7432]
[1727480034028,0.75222,2703.3,2703.0,1.33]
[1727480034831,0.75222,2703.3,2703.1,0.3769]
[1727480035926,0.36983,2703.2,2703.1,0.3769]
[1727480038629,0.75223,2703.3,2703.1,0.3769]
[1727480039434,0.36983,2703.2,2703.1,0.3769]
[1727480039632,0.3824,2703.3,2703.1,0.3769]
[1727480039633,0.75223,2703.3,2703.1,0.3769]
[1727480040927,0.3824,2703.3,2703.1,0.3769]
[1727480042129,0.75222,2703.3,2703.1,0.3769]
[1727480043535,0.3824,2703.3,2703.1,0.3769]
[1727480043837,0.75222,2703.3,2703.1,0.3769]
[1727480046230,0.3824,2703.3,2703.1,0.3769]
[1727480048436,3.2078,2703.4,2703.1,0.3769]
[1727480048935,3.57761,2703.4,2703.2,1.33]
[1727480049133,3.2078,2703.4,2703.3,0.7711]
[1727480049439,0.758,2703.5,2703.3,0.7711]
[1727480049644,0.36981,2703.4,2703.3,0.7711]
[1727480050031,0.3882,2703.5,2703.3,2.1011]
[1727480050032,0.758,2703.5,2703.3,2.1011]
[1727480050229,0.3882,2703.5,2703.3,2.1011]
[1727480050935,0.75799,2703.5,2703.3,2.1011]
[1727480053837,0.3882,2703.5,2703.3,2.1011]
[1727480054343,0.758,2703.5,2703.3,2.1011]
[1727480056341,0.3882,2703.5,2703.3,2.1011]
[1727480056951,0.3698,2703.5,2703.3,2.1011]
[1727480057445,1.81854228,2703.5,2703.3,2.1011]
[1727480058347,1.44874228,2703.4,2703.3,2.1011]
[1727480059345,2.3013802,2703.5,2703.3,2.1011]
[1727480060250,1.9315802,2703.4,2703.3,2.1011]
[1727480060643,2.3013802,2703.5,2703.3,2.1011]
[1727480061243,1.9315802,2703.4,2703.3,0.7711]
[1727480062450,2.3013902,2703.4,2703.3,0.7711]
[1727480062752,2.30302972,2703.4,2703.3,0.7711]
[1727480062944,2.67542972,2703.4,2703.3,0.7711]
[1727480063543,2.67542972,2703.4,2703.3,1.74186418]
[1727480066352,0.92463,2703.1,2703.0,0.17443015]
[1727480066553,0.92463,2703.1,2702.9,1.94025407]
[1727480066554,0.36993,2702.5,2702.4,0.172]
[1727480066758,0.92466,2703.0,2702.2,3.64115407]
[1727480066759,0.36995,2702.4,2702.2,1.7009]
[1727480066948,2.30315422,2702.4,2702.2,1.7009]
[1727480067152,1.449952,2702.3,2702.2,1.7009]
[1727480067449,1.449952,2702.4,2702.2,1.7009]
[1727480068051,1.819902,2702.4,2702.2,1.7009]
[1727480068247,1.449952,2702.3,2702.2,1.7009]
[1727480068454,1.819902,2702.4,2702.2,1.7009]
[1727480068758,0.36996,2702.3,2702.2,0.3709]
[1727480069058,1.81727276,2702.3,2702.2,0.3709]
[1727480069244,0.36999,2702.1,2702.0,3.2078]
[1727480069758,0.36999,2702.1,2701.9,0.7753]
[1727480069759,0.37,2702.0,2701.9,0.7753]
[1727480070353,0.36999,2702.1,2701.9,0.7753]
[1727480070552,0.37,2702.0,2701.9,0.7753]
[1727480070756,0.36999,2702.1,2701.9,0.7753]
[1727480071249,3.70218743,2702.4,2701.9,0.7753]
[1727480071450,0.37,2702.1,2701.9,0.7753]
[1727480072058,3.57778,2702.2,2701.9,0.7753]
[1727480072259,0.36999,2702.1,2701.9,0.7753]
[1727480072449,3.57778,2702.2,2701.9,0.7753]
[1727480072655,0.36998,2702.2,2701.9,0.7753]
[1727480073358,0.36999,2702.1,2701.9,0.7753]
[1727480080757,3.57777,2702.3,2702.0,1.33]
[1727480081856,0.36997,2702.2,2702.0,1.33]
[1727480082058,3.57776,2702.3,2702.0,1.33]
[1727480082457,3.57777,2702.3,2702.0,1.33]
[1727480083361,3.2078,2702.3,2702.0,1.33]
[1727480083660,3.57776,2702.3,2702.0,1.33]
[1727480084469,3.57777,2702.3,2702.0,1.33]
[1727480085061,0.2497,2702.7,2702.2,1.33]
[1727480085062,3.4575,2702.7,2702.2,1.33]
[1727480085262,0.36994,2702.4,2702.3,0.7947]
[1727480085456,0.36994,2702.5,2702.3,0.7947]
[1727480085661,0.36994,2702.5,2702.4,0.3712]
[1727480101364,3.57772,2702.6,2702.4,0.3712]
[1727480101569,3.2078,2702.6,2702.4,0.3712]
[1727480101767,3.57772,2702.6,2702.4,0.3712]
[1727480102159,0.36993,2702.5,2702.4,0.3712]
[1727480102772,3.57773,2702.6,2702.4,0.3712]
[1727480102970,3.2078,2702.6,2702.4,0.3712]
[1727480103172,3.57773,2702.6,2702.4,0.3712]
[1727480107373,3.2078,2702.6,2702.5,3.7]
[1727480107576,4.65096499,2703.0,2702.5,5.39992]
[1727480107779,3.57766,2703.0,2702.7,1.33]
[1727480108079,3.57767,2703.0,2702.8,0.7981]
[1727480108477,3.57767,2703.0,2702.9,0.3864]
[1727480108979,4.90767,2703.0,2702.9,0.3864]
[1727480109376,6.35083499,2703.0,2702.9,0.3864]
[1727480109680,5.98096499,2703.0,2702.9,0.3864]
[1727480110185,1.69986,2703.0,2702.9,0.3864]
[1727480110381,2.77316499,2703.0,2702.9,0.3864]
[1727480110682,1.33,2703.0,2702.9,0.3864]
[1727480110979,4.90766,2703.0,2702.9,0.3864]
[1727480111283,6.35082499,2703.0,2702.9,0.3864]
[1727480111977,4.90766,2703.0,2702.9,0.3864]
[1727480112186,6.35469084,2703.0,2702.9,0.3864]
[1727480112490,4.90766,2703.0,2702.9,0.3864]
[1727480116299,6.35487282,2703.0,2702.9,0.3864]
[1727480116495,6.35482666,2703.0,2702.9,0.3864]
[1727480116696,4.90766,2703.0,2702.9,0.3864]
[1727480116994,6.35485226,2703.0,2702.9,0.3864]
[1727480117497,6.35479799,2703.0,2702.9,0.3864]
[1727480120101,4.90766,2703.0,2702.9,0.3864]
[1727480120800,6.35486914,2703.0,2702.9,0.3864]
[1727480122101,4.90766,2703.0,2702.9,0.3864]
[1727480122297,4.90766,2703.0,2702.8,0.7981]
[1727480122503,1.44725103,2702.9,2702.8,0.7981]
[1727480123197,1.69665103,2702.9,2702.8,0.7981]
[1727480123600,2.06653103,2702.9,2702.8,0.7981]
[1727480125102,0.61928,2702.9,2702.8,0.7981]
[1727480125303,2.06672513,2702.9,2702.8,0.7981]
[1727480125503,1.81732513,2702.9,2702.8,0.7981]
[1727480126607,1.81750568,2702.9,2702.8,0.7981]
[1727480135400,0.36988,2702.9,2702.8,0.7981]
[1727480138412,1.81842599,2702.9,2702.8,0.7981]
[1727480138816,6.83188999,2703.0,2702.8,0.7981]
[1727480139014,1.44856051,2702.9,2702.8,0.7981]
[1727480139411,6.46201999,2703.0,2702.8,0.7981]
[1727480139713,1.44870181,2702.9,2702.8,0.7981]
[1727480140015,4.65650181,2703.0,2702.8,1.16799]
[1727480140809,3.2078,2703.0,2702.9,5.39988]
[1727480141016,1.44870181,2703.2,2703.1,0.36985]
[1727480141223,1.92421999,2703.4,2703.2,0.36983]
[1727480141224,1.4489161,2703.3,2703.2,0.36983]
[1727480141412,1.44905307,2703.3,2703.1,0.36984]
[1727480141715,1.44905307,2703.3,2703.2,0.3742]
[1727480142608,1.44905307,2703.4,2703.2,0.3742]
[1727480142814,1.44905307,2703.3,2703.2,0.3742]
[1727480144321,3.14887307,2703.3,2703.2,0.3742]
[1727480147025,3.53617307,2703.3,2703.2,0.3742]
[1727480149018,2.08712,2703.3,2703.2,0.3742]
[1727480149717,4.01133999,2703.3,2703.2,0.3742]
[1727480150318,2.08712,2703.3,2703.2,0.3742]
[1727480151817,4.01133999,2703.3,2703.2,0.3742]
[1727480152022,7.21913999,2703.3,2703.2,0.3742]
[1727480152425,4.01133999,2703.3,2703.2,0.3742]
[1727480152819,7.21913999,2703.3,2703.2,0.3742]
[1727480153020,5.29492,2703.3,2703.2,0.3742]
[1727480153219,2.08712,2703.3,2703.2,0.3742]
[1727480153420,3.53583874,2703.3,2703.2,0.3742]
[1727480153729,3.53590783,2703.3,2703.2,0.3742]
[1727480153924,2.08712,2703.3,2703.2,0.3742]
[1727480154228,5.29492,2703.3,2703.2,0.3742]
[1727480156632,1.7173,2703.3,2703.2,0.3742]
[1727480157031,2.08712,2703.3,2703.2,0.3742]
[1727480157729,1.7173,2703.3,2703.2,0.3742]
[1727480157930,3.53643685,2703.3,2703.2,0.3742]
[1727480158126,3.53641053,2703.3,2703.2,0.7471]
[1727480158329,2.08712,2703.3,2703.2,0.7471]
[1727480159018,3.53638933,2703.3,2703.2,0.7471]
[1727480159225,3.53641889,2703.3,2703.2,0.7471]
[1727480159530,3.53638503,2703.3,2703.2,0.7471]
[1727480160331,3.53642671,2703.3,2703.2,0.7471]
[1727480160731,2.08712,2703.3,2703.2,0.7471]
[1727480161927,2.08712,2703.3,2703.2,0.3742]
[1727480162238,0.36983,2703.2,2703.1,0.4012]
[1727480162535,3.1491122,2703.2,2703.1,0.4012]
[1727480162733,1.69983,2703.2,2703.1,0.4012]
[1727480163127,1.33,2703.2,2703.1,0.4012]
[1727480163529,2.77934139,2703.2,2703.1,0.4012]
[1727480164334,1.69983,2703.2,2703.1,0.4012]
[1727480164535,1.33,2703.2,2703.1,0.4012]
[1727480165428,3.14917881,2703.2,2703.1,0.4012]
[1727480166323,1.69983,2703.2,2703.1,0.4012]
[1727480168737,0.36986,2703.0,2702.9,0.7587]
[1727480168933,1.69986,2703.0,2702.9,0.7587]
[1727480169341,3.14956082,2703.0,2702.9,0.7587]
[1727480169631,1.33,2703.0,2702.9,0.7587]
[1727480169836,2.77970082,2703.1,2702.9,0.7587]
[1727480170037,0.36986,2703.0,2702.9,0.7587]
[1727480170231,3.14956082,2703.1,2702.9,0.7587]
[1727480170937,0.36986,2703.0,2702.9,0.7587]
[1727480171338,3.14956082,2703.1,2702.9,0.7587]
[1727480171931,0.36986,2703.0,2702.9,0.7587]